Cogmind - Beta 11 X5 @@@ ROGUE MODE // 2021.06.22 @ 19:26:28 Player: Vectis Result: Destroyed by as-99739 with Assembled Maul Performance ------------- Evolutions (0) 0 Regions Visited (2) 400 Robots Destroyed (23) 115 Value Destroyed (406) 406 Prototype IDs (3) 60 Alien Tech Used (0) 0 Bonus (0) 0 TOTAL SCORE: 981 Bonus ------- None Cogmind --------- Core Integrity 0/250 Matter 300/300 Energy 100/100 System Corruption 9% Temperature Cool (0) Movement Core (50) Location -10/Mines Parts ------- > --- POWER (1) -------- (None) > --- PROPULSION (2) --- (None) > --- UTILITY (2) ------ (None) > --- WEAPON (2) ------- (None) > --- INVENTORY (5) ---- Medium Storage Unit Hardened Light Armor Plating Small Laser Spread Laser Light Cannon Peak State ------------ > --- POWER ------------ Ion Engine > --- PROPULSION ------- Light Treads Light Treads > --- UTILITY ---------- Heat Sink High-capacity Storage Unit > --- WEAPON ----------- Beam Cannon Light Assault Rifle > --- INVENTORY -------- Ion Engine Light Ion Engine Light Treads Light Treads Wheel Compact Wheel Medium Storage Unit Small Laser Small Laser Spread Laser Spread Laser Spread Laser Assault Rifle Light Assault Rifle Light Assault Rifle Light Assault Rifle Light Assault Rifle [Rating: 9] Favorites ----------- Power Ion Engine Engine Ion Engine Propulsion Light Treads Treads Light Treads Leg Aluminum Leg Utility Heat Sink Device Heat Sink Storage High-capacity Storage Unit Protection Hardened Light Armor Plating Weapon Light Assault Rifle Energy Gun Small Laser Energy Cannon Beam Cannon Ballistic Gun Light Assault Rifle Build | -11 -10 -10 ------- Run | Scr Mat Min Slots Evolved . | . . . Power . | . . . Propulsion . | . . . Utility . | . . . Weapon . | . . . Parts Attached 14 | . 12 2 Power 1 | . 1 . Engine 1 | . 1 . Core . | . . . Reactor . | . . . Propulsion 4 | . 4 . Treads 4 | . 4 . Leg . | . . . Wheel . | . . . Hover . | . . . Flight . | . . . Utility 6 | . 4 2 Device 2 | . 2 . Storage 2 | . 2 . Processor . | . . . Hackware . | . . . Protection 2 | . . 2 Artifact . | . . . Weapon 3 | . 3 . Energy Gun 1 | . 1 . Energy Cannon 1 | . 1 . Ballistic Gun 1 | . 1 . Ballistic Cannon . | . . . Launcher . | . . . Special Weapon . | . . . Impact Weapon . | . . . Slashing Weapon . | . . . Piercing Weapon . | . . . Special Melee Weapon . | . . . Unidentified Prototypes . | . . . Parts Lost 5 | . 1 4 Power 1 | . . 1 Propulsion 2 | . 1 1 Utility 1 | . . 1 Weapon 1 | . . 1 Highest Loss Streak 4 | . 1 4 Average Slot Usage (%) 95 | . 95 57 Engine 14 | . 14 14 Treads 23 | . 23 . Leg 4 | . 4 . Device 10 | . 10 . Storage 14 | . 14 14 Energy Gun 2 | . 2 . Energy Cannon 11 | . 11 14 Ballistic Gun 13 | . 13 . Naked Turns 2 | . . 2 Heaviest Build 50 | 12 50 50 Greatest Support 40 | 20 40 40 Greatest Overweight (x) 1 | . 1 1 Average Overweight (x) . | . . . Largest Inventory Capacity 20 | . 20 20 Average Capacity 15 | . 15 17 Most Carried 20 | . 20 20 Average Carried 12 | . 12 16 Final Capacity 20 | 8 20 5 Final Carried 20 | 6 20 5 Class Distribution -------------------- 100% | Mutant Dominant Class ---------------- Mutant | -10/Materials Mutant | -10/Mines Resources | -11 -10 -10 ----------- Run | Scr Mat Min Matter Collected 387 | 200 179 8 Remotely . | . . . Salvage Created 701 | . 701 . Parts 53 | . 53 . Haulers Intercepted 1 | . 1 . Recyclers Shooed . | . . . Parts Field Recycled . | . . . Retrieved Matter . | . . . Parts Self-Destructed . | . . . Prevented . | . . . Kills | -11 -10 -10 ------- Run | Scr Mat Min Combat Hostiles Destroyed 15 | . 15 . Guns 3 | . 3 . Cannons 12 | . 12 . Classes Destroyed 7 | . 7 . Worker 2 | . 2 . Hauler 1 | . 1 . Recycler 2 | . 2 . Operator 1 | . 1 . Watcher 2 | . 2 . Swarmer 7 | . 7 . Grunt 8 | . 8 . Best Kill Streak 8 | . 8 . Combat Bots Only 3 | . 3 . Max Kills in Single Turn 1 | . 1 . Gunslinging . | . . . Exploded . | . . . Melee . | . . . Uniques/NPCs Destroyed . | . . . Combat | -11 -10 -10 -------- Run | Scr Mat Min Damage Taken 1022 | . 580 442 Core 254 | . 104 150 Absorbed by Shields . | . . . Core Remaining (%) 100 | 100 . . Volleys Fired 61 | . 61 . Largest 2 | . 2 . Hottest 80 | . 80 . Shots Fired 122 | . 122 . Gun 68 | . 68 . Cannon 54 | . 54 . Launcher . | . . . Special . | . . . Kinetic 61 | . 61 . Thermal 61 | . 61 . Explosive . | . . . Electromagnetic . | . . . Robot Hit Streak 7 | . 7 . Robot Miss Streak 4 | . 4 . Penetration Max . | . . . Secondary Targets . | . . . Shots Hit Robots 68 | . 68 . Core Hits 29 | . 29 . Critical Kills . | . . . Critical Parts Destroyed . | . . . Critical Strikes . | . . . Melee Attacks . | . . . Impact . | . . . Slashing . | . . . Piercing . | . . . Sneak Attacks . | . . . Combat Hostiles . | . . . Follow-up Attacks . | . . . Damage Inflicted 1029 | . 1029 . Guns 292 | . 292 . Cannons 733 | . 733 . Explosions . | . . . Melee . | . . . Ramming 4 | . 4 . Kinetic 225 | . 225 . Thermal 800 | . 800 . Explosive . | . . . Electromagnetic . | . . . Impact . | . . . Slashing . | . . . Piercing . | . . . Highest Corruption 9 | . 2 9 Average Corruption 2 | . 2 4 Corruption Purged . | . . . Effects 10 | . 10 . Message Errors 7 | . 7 . Heat Flow Errors 1 | . 1 . Energy Discharges 1 | . 1 . Data Loss (minor) 1 | . 1 . Overload Shots . | . . . Overflow Damage . | . . . Projectiles . | . . . Explosions . | . . . Melee . | . . . Knockbacks . | . . . Impact . | . . . Kinetic . | . . . Secondary . | . . . Self-Inflicted Damage . | . . . Shots . | . . . Rammed 2 | . . 2 Targets Rammed 3 | . 1 2 Kicked . | . . . Crushed 1 | . 1 . Highest Temperature 378 | . 378 . Average Temperature 86 | . 86 . Received Heat Transfer 138 | . 138 . Effects 1 | . 1 . Shutdowns 1 | . 1 . Siege Activations . | . . . Robots Corrupted . | . . . Combat Hostiles . | . . . Parts Fried . | . . . Impact Corruptions . | . . . Robots Melted . | . . . Combat Hostiles . | . . . Parts Melted 4 | . 4 . Heat Transferred 1630 | . 1630 . Parts Sabotaged . | . . . Parts Stolen . | . . . Parts Stripped . | . . . Power Chain Reactions . | . . . Missiles Intercepted . | . . . Alert | -11 -10 -10 ------- Run | Scr Mat Min Peak Influence 211 | . 211 47 Initial 47 | . . 47 Average 76 | . 76 32 Maximum Alert Level 1 | . 1 . Low Security (%) 98 | . 98 100 Level 1 1 | . 1 . Level 2 . | . . . Level 3 . | . . . Level 4 . | . . . Level 5 . | . . . High Security . | . . . Max Security . | . . . Squads Dispatched 7 | . 7 . Investigation 6 | . 6 . Extermination . | . . . Reinforcement 1 | . 1 . Assault . | . . . Garrison . | . . . Intercept . | . . . Construction Impeded . | . . . Haulers Reinforced . | . . . Cargo Convoy Interrupts . | . . . Stealth | -11 -10 -10 --------- Run | Scr Mat Min Distress Signals 2 | . 2 . Communications Jammed . | . . . Distress Signals . | . . . Times Spotted 52 | . 32 20 Peak Tracking Total 20 | . 6 20 Tactical Retreats . | . . . Traps | -11 -10 -10 ------- Run | Scr Mat Min Traps Triggered 2 | . 2 . Indirectly . | . . . Trap Hack Attempts . | . . . Triggered . | . . . Disarmed . | . . . Reprogrammed . | . . . Reused . | . . . Traps Extracted . | . . . Installed . | . . . Triggered . | . . . Machines | -11 -10 -10 ---------- Run | Scr Mat Min Machines Disabled . | . . . Max in Single Turn . | . . . Machines Sabotaged . | . . . Garrisons Compromised . | . . . Overloaded Fab Kills . | . . . Fab Network Shutdowns . | . . . Hacking | -11 -10 -10 --------- Run | Scr Mat Min Machines Accessed 10 | . 10 . Terminals 7 | . 7 . Fabricators . | . . . Repair Stations 1 | . 1 . Recycling Units 2 | . 2 . Scanalyzers . | . . . Garrison Access . | . . . Total Hacks 40 | . 40 . Successful 23 | . 23 . Failed 17 | . 17 . Catastrophic 2 | . 2 . Database Lockouts . | . . . Manual 32 | . 32 . Terminals 32 | . 32 . Fabricators . | . . . Repair Stations 6 | . 6 . Recycling Units 2 | . 2 . Scanalyzers . | . . . Garrison Access . | . . . Terminal Hacks 10 | . 10 . Part Schematic 1 | . 1 . Robot Analysis 3 | . 3 . Prototype ID Bank 2 | . 2 . Terminal Index 1 | . 1 . Hauler Manifests 1 | . 1 . Zone Layout 2 | . 2 . Fabricator Hacks . | . . . Repair Station Hacks 6 | . 6 . Scan Component 3 | . 3 . Repair 3 | . 3 . Recycling Unit Hacks . | . . . Scanalyzer . | . . . Garrison Access Hacks . | . . . Unauthorized Hacks 7 | . 7 . Terminals 5 | . 5 . Track 1 | . 1 . Botnet 3 | . 3 . Disrupt 1 | . 1 . Fabricators . | . . . Repair Stations . | . . . Recycling Units 2 | . 2 . Tunnel 2 | . 2 . Scanalyzers . | . . . Garrison Access . | . . . Data Cores Recovered . | . . . Used . | . . . Hacking Detections 8 | . 8 . Full Trace Events 6 | . 6 . Feedback Events . | . . . Feedback Blocked . | . . . Robot Schematics Acquired . | . . . Robots Built . | . . . Matter . | . . . Time . | . . . Total Robot Build Rating . | . . . Part Schematics Acquired 1 | . 1 . Parts Built . | . . . Matter . | . . . Time . | . . . Total Part Build Rating . | . . . Parts Repaired 3 | . 3 . Time 78 | . 78 . Parts Recycled . | . . . Recycled Matter . | . . . Retrieved Matter . | . . . Retrieved Components . | . . . Parts Scanalyzed . | . . . Part Schematics Acquired . | . . . Parts Damaged . | . . . Bothacking | -11 -10 -10 ------------ Run | Scr Mat Min Used RIF Installer . | . . . Robots Hacked . | . . . Non-combat . | . . . Combat . | . . . Robot Hacks Applied . | . . . Relay Couplers Released . | . . . Robots Rewired . | . . . Allies Hacked . | . . . Hacks Repelled . | . . . Allies | -11 -10 -10 -------- Run | Scr Mat Min Total Allies . | . . . Largest Group . | . . . Highest-Rated Group . | . . . Highest-Rated Ally . | . . . Total Orders . | . . . Ally Attacks . | . . . Total Damage . | . . . Kills . | . . . Allies Corrupted . | . . . Allies Melted . | . . . Intel | -11 -10 -10 ------- Run | Scr Mat Min Robot Analysis Total 3 | . 3 . Derelict Logs Recovered . | . . . Drone Launches . | . . . Drone Recoveries . | . . . Exploration | -11 -10 -10 ------------- Run | Scr Mat Min Turns Passed 1541 | . 1531 10 Spaces Moved 563 | 1 560 2 Core 1 | . . 1 Treads 427 | . 426 1 Legs 135 | 1 134 . Wheels . | . . . Hover . | . . . Flight . | . . . Fastest Speed 50 | 120 120 50 Average Speed 200 | 120 200 155 Slowest Speed 260 | 120 260 260 Overloaded Moves . | . . . Propulsion Burnouts . | . . . Robots Hopped . | . . . Cave-ins Triggered . | . . . Exploration Rate (%) 33 | 2 96 3 Regions Visited 2 Branch Regions 1 Pre-discovered Areas 2 | . 2 . Known Exits Taken . | . . . Unknown Exits Taken 2 | 1 1 . Scrap Searched . | . . . Spaces Dug . | . . . Terrain Destroyed . | . . . Melee . | . . . Projectile . | . . . AOE . | . . . Terrain Rammed . | . . . Walls Destroyed . | . . . Machines Disabled . | . . . Actions | -11 -10 -10 --------- Run | Scr Mat Min Total 864 | . 858 6 Wait 193 | . 193 . Move 561 | . 559 2 Hop . | . . . Pick Up 21 | . 21 . Fast Attach 5 | . 5 . Attach 5 | . 4 1 Detach 2 | . 2 . Swap 4 | . 3 1 Drop 9 | . 9 . Fire 61 | . 61 . Melee . | . . . Ram 1 | . . 1 Kick . | . . . Crush 2 | . 1 1 Escape Stasis . | . . . Rewire . | . . . Trap . | . . . Miscellaneous . | . . . Route ------- -11/Scrapyard -10/Materials (discovered 4 exits: [*Mat x3] / [*Min]) -10/Mines History --------- Turn | Location | Event 1 | -11/Scrapyard | Discovered new exit (range 0) 1 | -11/Scrapyard | Entered Materials 93 | -10/Materials | Discovered new exit (range 14) 307 | -10/Materials | Build established: Mutant 405 | -10/Materials | Discovered new exit (range 9) 583 | -10/Materials | Repaired Lgt. Assault Rifle 610 | -10/Materials | Repaired Lgt. Treads 638 | -10/Materials | Repaired Heat Sink 988 | -10/Materials | Discovered new exit (range 13) 1365 | -10/Materials | Discovered new exit (range 11) 1532 | -10/Materials | Entered Mines 1533 | -10/Mines | Assembled infested the area 1533 | -10/Mines | Met a Derelict bent on vengeance 1538 | -10/Mines | Core integrity fell below 50% 1540 | -10/Mines | Released all parts (3) 1542 | -10/Mines | Core integrity fell below 20% 1542 | -10/Mines | Destroyed by as-99739 with Assembled Maul Last Messages --------------- 01534_ as-51620 sneak attacks. 01534_ K-01 Serf destroyed. 01534_ as-28762 sneak attacks. 01534_ K-01 Serf destroyed. 01535_ Slammed into as-89445. 01537_ Lgt. Treads destroyed. 01537_ Lgt. Treads severed. 01538_ Heat Sink destroyed. 01538_ System corrupted by crushing effect (+4). 01538_ Lgt. Assault Rifle destroyed. 01538_ System corrupted by crushing effect (+3). 01538_ Knocked back. 01538_ as-89445 destroyed. 01540_ Ion Engine destroyed. 01540_ Knocked back. 01540_ Released Hcp. Storage Unit. 01540_ Released Beam Cannon. 01540_ Released Hrd. Light Armor Plating. 01541_ Slammed into as-40596. 01542_ Acquired 8 matter. Map ----- +----------------------------------------------------+ | ?????????????????????????????? | | ?????????????????????????????? | | ?????????????????????????????? | | ?????????????????????????????? | | ?????????????????????????????? | | ?????????????????????????????? | | ?????????????????????????????? | | ?????????????????????????????? | | ?????????????????????????????? | | ?????????????????????????????? | | ?????????????????????????????? | | ?????????????????????????????? | | ?????????????????????????????? | | ?????????????????????????????? | | ?????????????????????????????? | | ?????????????????????????????? | | ?????????????????????????????? | | ?????????????????????????????? | | ?????????????????????????????? | | ?????????????????????#######?? | | ?????????????????????# [#?? | | ?????????????????????# !*[#?? | | ?????????????????????# !][*#?? | | ?????????????????????# a%=!#?? | | ?????????????????????# ]aa[#?? | | ?????????????????????#aaa@a#?? | | ?????????????????????#a=aaa#?? | | ?????????????????????#= aa #?? | | ?????????????????????###a###?? | | ???????????????????????#a#???? | | ???????????????????????#a#???? | | ???????????????????????#a#???? | | ??????????????????????? a ???? | | ???????????????????????